bitfinex-derivatives/quotes_ETHF0:USTF0_20260102
["timestamp","ask_amount","ask_price","bid_price","bid_amount"]
[1767371270178,0.00483387,3102.4,3101.4,0.00811148]
[1767371271685,0.1604,3102.7,3101.8,0.16131]
[1767371271889,1.04545758,3103.6,3101.9,0.16131]
[1767371272179,1.04545758,3103.6,3102.0,0.1613]
[1767371272579,0.00483387,3103.1,3102.1,0.1613]
[1767371272776,0.00716047,3103.1,3102.1,0.1613]
[1767371274181,0.00716047,3103.1,3101.9,4.422]
[1767371275677,1.04545758,3103.6,3101.9,4.58331]
[1767371275984,1.04545758,3103.6,3102.2,0.16129]
[1767371276682,1.04802847,3103.6,3102.2,0.16129]
[1767371279184,1.00569935,3104.1,3102.5,1.39509373]
[1767371279388,1.00569935,3104.1,3103.0,0.00483387]
[1767371279587,0.16115,3105.0,3103.0,1.2386576]
[1767371280285,0.1648599,3105.0,3103.0,1.2386576]
[1767371280883,0.0037099,3105.0,3103.0,0.00483387]
[1767371281188,0.16118,3104.5,3103.0,0.00483387]
[1767371281381,0.0037099,3105.0,3103.0,0.00483387]
[1767371281692,1.00940925,3105.0,3103.0,0.00483387]
[1767371281891,1.00940925,3105.0,3103.0,1.09115012]
[1767371284379,1.00940925,3105.0,3103.3,2.48136998]
[1767371284578,1.00940925,3105.0,3103.3,1.24754625]
[1767371286489,0.0037099,3105.0,3103.8,0.16121]
[1767371286788,1.00569935,3106.0,3104.0,1.08631625]
[1767371286993,1.00569935,3106.0,3104.7,0.00483387]
[1767371287694,1.00803115,3106.0,3104.7,0.00814875]
[1767371288587,0.0023318,3106.0,3104.7,0.00814875]
[1767371289395,1.00803115,3106.0,3104.7,0.00814875]
[1767371289990,1.16912115,3106.0,3104.7,0.00814875]
[1767371290188,1.00803115,3106.0,3104.7,0.00814875]
[1767371290391,0.0023318,3106.0,3104.7,0.00814875]
[1767371291793,1.00803115,3106.0,3104.7,0.00814875]
[1767371293599,0.0023318,3106.0,3104.7,0.00814875]
[1767371293792,1.16410115,3106.4,3104.7,0.00814875]
[1767371294799,1.00569935,3106.1,3104.7,0.00814875]
[1767371295099,1.00569935,3105.9,3104.7,0.00814875]
[1767371295302,1.00953951,3106.4,3104.7,0.00814875]
[1767371297201,1.00953951,3106.4,3104.7,1.094465]
[1767371297499,0.00384016,3106.4,3104.8,1.24747625]
[1767371297706,0.00384016,3106.4,3104.9,1.24746625]
[1767371299207,0.00384016,3106.4,3105.1,1.08631625]
[1767371299411,1.00569935,3107.4,3105.3,1.08631625]
[1767371299601,1.00569935,3107.4,3106.0,0.00483387]
[1767371300308,1.00709981,3107.4,3106.0,0.00483387]
[1767371300504,0.00140046,3107.4,3106.0,0.00483387]
[1767371300906,1.00709981,3107.4,3106.0,0.00483387]
[1767371301306,0.00140046,3107.4,3106.0,0.00483387]
[1767371301510,1.00569935,3108.0,3106.3,1.08631625]
[1767371301705,1.00569935,3108.5,3106.8,1.23382373]
[1767371301902,1.00569935,3108.5,3106.8,5.64882373]
[1767371302104,1.00569935,3108.5,3106.8,4.415]
[1767371302710,1.00569935,3108.5,3106.7,3.222]
[1767371302711,1.00569935,3108.5,3106.7,1.08631625]
[1767371303009,1.00569935,3108.5,3106.8,4.415]
[1767371303197,1.00569935,3108.5,3106.7,1.08631625]
[1767371303402,1.00569935,3108.5,3106.9,4.415]
[1767371303614,1.00569935,3108.5,3106.9,4.41886739]
[1767371303809,1.00569935,3108.5,3106.9,0.00386739]
[1767371304107,1.23382373,3109.0,3106.9,0.00386739]
[1767371304108,1.00569935,3107.9,3106.9,0.00386739]
[1767371304306,1.00569935,3107.9,3105.2,1.24744625]
[1767371304511,1.00569935,3107.7,3105.3,1.901]
[1767371304710,1.00569935,3107.5,3105.3,1.901]
[1767371304907,1.00569935,3107.3,3105.3,1.901]
[1767371305210,0.00483387,3106.6,3106.0,0.00483387]
[1767371306204,0.00483387,3106.6,3105.3,1.90400272]
[1767371307409,0.00483387,3106.6,3105.6,0.00483387]
[1767371307813,0.00483387,3106.6,3105.6,0.00383387]
[1767371310413,0.00483387,3106.6,3105.6,0.00283387]
[1767371311821,0.00483387,3106.6,3105.3,0.00300272]
[1767371311822,1.04915928,3106.4,3105.3,0.00300272]
[1767371312014,0.91154247,3106.3,3105.3,0.00300272]
[1767371312820,0.91154247,3106.3,3105.5,0.00483387]
[1767371314716,0.00483387,3106.6,3105.5,0.00483387]
[1767371314916,0.91300192,3106.5,3105.5,0.00483387]
[1767371315218,0.00483387,3106.6,3105.5,0.00383387]
[1767371315615,0.00483387,3106.6,3105.5,1.01707033]
[1767371317509,0.00483387,3106.6,3105.5,1.01607033]
[1767371317713,0.00483387,3106.6,3105.6,4.412]
[1767371319229,0.00483387,3106.6,3105.7,4.413]
[1767371319727,1.05399315,3106.6,3105.5,0.00283387]
[1767371320114,0.00483387,3106.6,3105.5,0.00283387]
[1767371320319,0.00483387,3106.6,3105.5,0.00183387]
[1767371323927,0.00483387,3106.6,3105.6,4.414]
[1767371324626,0.00483387,3106.6,3105.5,0.00183387]
[1767371326531,1.04915928,3107.0,3105.5,0.00183387]
[1767371326834,1.04915928,3107.0,3105.6,0.16111]
[1767371327227,1.04915928,3107.0,3105.8,0.1611]
[1767371327433,0.00263917,3107.3,3106.1,1.17432646]
[1767371327624,0.16099,3108.1,3106.3,1.01323646]
[1767371328537,0.00483387,3107.5,3106.3,1.01323646]
[1767371328738,0.00483387,3107.5,3106.3,1.17431646]
[1767371329638,0.00483387,3107.5,3106.4,4.416]
[1767371331739,0.00483387,3107.5,3106.4,5.42923646]
[1767371332437,0.00483387,3107.5,3106.3,0.16108]
[1767371332638,0.00483387,3107.5,3106.4,4.417]
[1767371333138,1.04899315,3108.0,3106.4,4.417]
[1767371334139,0.00300001,3107.5,3106.4,4.417]
[1767371335734,0.00122821,3108.1,3106.5,1.17430646]
[1767371335931,1.12331442,3109.3,3107.3,2.24706019]
[1767371336134,1.12331442,3109.0,3106.7,1.11843172]
[1767371336334,1.28425442,3109.0,3106.7,1.11843172]
[1767371336535,1.12331442,3108.8,3106.8,3.161]
[1767371336742,1.12331442,3108.8,3107.5,0.00482579]
[1767371337046,1.12331442,3108.8,3107.5,0.00795493]
[1767371337348,1.12331442,3108.4,3107.0,1.594]
[1767371337538,1.12331442,3108.4,3106.2,1.11843172]
[1767371337843,1.12331442,3108.2,3106.3,4.418]
[1767371338039,1.12331442,3108.2,3105.9,1.27953172]
[1767371338342,1.12331442,3108.0,3106.7,0.00482579]
[1767371338846,0.00312915,3108.2,3106.8,4.418]
[1767371340043,1.12644357,3108.2,3106.7,0.00482579]
[1767371341341,0.00312915,3108.2,3106.7,1.12325751]
[1767371341644,0.00312915,3108.2,3106.9,1.11843172]
[1767371342534,0.00479882,3108.5,3106.7,0.00482579]
[1767371342535,0.00479882,3108.5,3107.1,1.11843172]
[1767371342841,1.12331442,3109.3,3107.5,1.27945172]
[1767371343045,1.39452005,3111.2,3107.0,4.15403834]
[1767371343046,1.12331442,3109.8,3107.7,1.27943172]
[1767371343239,1.12331442,3109.8,3107.9,1.11843172]
[1767371343438,1.81591219,3110.3,3108.2,1.11843172]
[1767371343639,1.28419442,3110.2,3108.9,0.00482579]
[1767371344241,0.53172777,3110.3,3108.2,0.0024236]
[1767371344242,1.12331442,3109.6,3108.2,0.0024236]
[1767371344938,0.16091,3109.7,3108.2,1.12085532]
[1767371345344,0.00482579,3109.3,3108.6,0.00482579]
[1767371345545,1.12331442,3110.1,3108.6,0.00482579]
[1767371346055,1.12331442,3110.0,3108.6,0.00482579]
[1767371346748,0.16089,3109.9,3108.6,0.00482579]
[1767371348747,0.1609,3109.7,3108.6,0.00482579]
[1767371349443,1.12331442,3110.0,3108.6,0.00482579]
[1767371349649,0.53172777,3110.3,3108.6,0.00482579]
[1767371350546,0.53172777,3110.3,3108.6,1.28420751]
[1767371350846,0.53172777,3110.3,3108.7,4.415]
[1767371351051,0.53172777,3110.3,3108.8,1.11843172]
[1767371351652,0.53172777,3110.3,3108.9,0.16094]
[1767371351850,0.53172777,3110.3,3108.9,1.27937172]
[1767371352052,0.16085,3110.8,3108.9,1.27937172]
[1767371352653,1.28416442,3110.8,3108.9,1.27937172]
[1767371353046,0.16082,3111.4,3109.1,1.11843172]
[1767371353247,0.16082,3111.4,3109.9,0.00482579]
[1767371353452,1.12331442,3111.6,3109.9,4.42082579]
[1767371353643,1.12331442,3111.6,3109.9,0.00482579]
[1767371353848,1.12331442,3111.2,3109.9,0.00482579]
[1767371354043,1.28414442,3111.2,3109.9,0.00482579]
[1767371354352,0.26364109,3112.4,3109.0,4.33643172]
[1767371354353,0.16085,3110.7,3109.0,1.11843172]
[1767371354654,0.16085,3110.7,3107.7,3.97394178]
[1767371354655,1.28416442,3110.7,3108.7,4.415]
[1767371355255,1.28416442,3110.7,3108.7,5.53343172]
[1767371355451,1.12331442,3111.2,3109.4,0.00482579]
[1767371356152,0.16084,3110.9,3109.4,0.00482579]
[1767371356352,0.16081,3111.6,3109.4,1.28417751]
[1767371356550,1.28412442,3111.6,3109.6,1.27933172]
[1767371356743,1.28412442,3111.6,3109.8,1.11843172]
[1767371357343,1.12331442,3112.1,3110.0,1.11843172]
[1767371357549,1.12331442,3112.6,3110.7,1.12325751]
[1767371357751,4.04336083,3115.4,3110.7,1.12325751]
[1767371357752,0.26637953,3114.0,3111.1,1.11843172]
[1767371358051,3.218,3114.1,3111.1,1.11843172]
[1767371358052,0.1607,3113.8,3111.2,1.11843172]
[1767371358254,0.16071,3113.5,3112.2,0.00482579]
[1767371358457,0.16071,3113.5,3111.3,1.11843172]
[1767371358760,0.16071,3113.4,3111.3,1.11843172]
[1767371359257,1.39452005,3113.8,3110.7,1.12254359]
[1767371359454,0.16077,3112.3,3110.7,0.00411187]
[1767371359756,1.0654425,3112.5,3110.7,0.00411187]
[1767371360055,0.16079,3112.0,3110.7,0.00411187]
[1767371361152,1.22288963,3111.9,3109.6,1.27934172]
[1767371361366,0.16082,3111.4,3109.6,1.11843172]
[1767371361856,0.00481795,3110.8,3110.2,0.00481795]
[1767371362254,0.0088033,3110.8,3110.2,0.00817839]
[1767371362855,0.0088033,3110.8,3109.1,1.11843172]
[1767371363262,0.3208,3110.7,3109.1,1.11843172]
[1767371363455,0.3208,3110.7,3109.3,1.11843172]
[1767371363955,0.3208,3110.7,3109.7,0.00481795]
[1767371364157,0.3208,3110.7,3109.3,0.00327689]
[1767371364760,0.3208,3110.7,3109.3,1.12170861]
[1767371364959,0.3208,3110.7,3109.3,0.00327689]
[1767371365362,0.16087,3110.4,3109.3,0.00327689]
[1767371365953,1.0759753,3110.6,3109.3,0.00327689]
[1767371366155,0.16089,3110.0,3108.2,1.05656118]
[1767371366357,0.16089,3110.0,3108.8,0.00323028]
[1767371367163,0.16089,3110.0,3108.8,0.00655489]
[1767371367564,0.16089,3109.9,3108.8,0.00655489]
[1767371368162,0.1609,3109.8,3108.8,0.00655489]
[1767371368361,0.1609,3109.8,3108.2,1.05656118]
[1767371369260,0.1609,3109.8,3108.2,1.05889521]
[1767371370362,0.16091,3109.5,3108.2,0.00233403]
[1767371370663,0.00481795,3109.2,3108.2,0.00233403]
[1767371370863,0.16574795,3109.2,3108.2,0.00233403]
[1767371371159,0.00481795,3109.2,3108.2,0.00233403]
[1767371371767,0.00481795,3109.2,3107.3,3.107]
[1767371371974,0.16094,3109.1,3107.4,1.11775246]
[1767371372876,0.16094,3109.1,3107.4,1.12165899]
[1767371373271,0.00481795,3109.2,3107.4,1.12165899]
[1767371373469,0.16574795,3109.2,3107.4,1.12165899]
[1767371374171,0.00481795,3109.2,3107.4,1.12165899]
[1767371374374,0.16094,3108.9,3107.4,1.12165899]
[1767371374677,1.07752012,3109.2,3107.4,0.00390653]
[1767371375177,0.16096,3108.6,3107.4,0.00390653]
[1767371375477,0.16097,3108.5,3107.4,0.00390653]
[1767371375675,0.16097,3108.4,3107.4,0.00390653]
[1767371376072,0.16098,3108.3,3106.8,4.413]
[1767371376272,0.16098,3108.2,3106.8,4.413]
[1767371376470,0.16099,3108.1,3106.4,1.11775246]
[1767371376669,0.00482587,3107.6,3106.4,1.11775246]
[1767371377081,0.00482587,3107.6,3106.4,1.1202539]
[1767371378177,0.00482587,3107.6,3106.4,0.00250144]
[1767371379276,0.16102,3107.4,3106.4,0.00250144]
[1767371379482,0.16105,3106.9,3105.6,0.26695095]
[1767371379874,0.16105,3106.9,3105.2,1.11775246]
[1767371380675,0.16105,3106.9,3105.2,1.12028601]
[1767371381578,0.00482587,3107.6,3105.2,1.12028601]
[1767371381778,1.05191678,3107.6,3105.2,1.12028601]
[1767371382587,0.16104,3107.1,3105.2,1.12028601]
[1767371383383,0.3212,3107.0,3105.2,1.12028601]
[1767371383773,0.48224,3107.0,3105.2,1.12028601]
[1767371384571,0.3212,3107.0,3105.3,0.16113]
[1767371384777,0.3212,3107.0,3105.4,1.11775246]
[1767371386483,0.3212,3107.0,3105.6,1.11775246]
[1767371386884,0.3212,3107.0,3105.7,4.16868326]
[1767371387086,0.3212,3107.0,3105.8,1.11775246]
[1767371393990,0.00482587,3107.6,3106.0,1.11775246]
[1767371394794,0.00482587,3107.6,3106.2,1.11775246]
[1767371394994,0.00482587,3107.6,3106.2,1.27883246]
[1767371395387,0.00482587,3107.6,3106.4,1.11775246]
[1767371395592,0.00482587,3107.6,3106.4,1.27882246]
[1767371397293,0.00482587,3107.6,3105.9,1.06983672]
[1767371397491,0.00482587,3107.6,3105.9,1.23093672]
[1767371397692,0.00482587,3107.6,3106.3,1.06983672]
[1767371399591,0.00482587,3107.6,3105.7,1.06983672]
[1767371400196,0.00482587,3107.6,3106.2,1.06983672]
[1767371400500,0.00482587,3107.6,3106.3,1.06983672]
[1767371400897,0.00482587,3107.6,3106.3,1.23091672]
[1767371401399,0.00306705,3108.6,3107.4,1.23085672]
[1767371401703,3.22,3109.7,3107.4,1.23085672]
[1767371401704,3.22,3109.7,3107.4,1.07244676]
[1767371401895,1.2307488,3109.2,3107.4,0.00261004]
[1767371402097,0.16096,3108.6,3107.4,0.00261004]
[1767371402297,0.89758413,3109.1,3107.7,0.00482587]
[1767371402298,0.00482587,3108.3,3107.7,0.00482587]
[1767371402696,0.00893296,3108.3,3107.7,0.00482587]
[1767371403098,0.89805164,3108.2,3106.2,1.06983672]
[1767371403292,0.89805164,3108.1,3106.2,1.06983672]
[1767371403496,0.16102,3107.5,3106.2,1.06983672]
[1767371403696,0.3217,3108.0,3106.2,1.06983672]
[1767371403898,0.3217,3108.0,3105.5,3.22]
[1767371403899,0.16103,3107.2,3105.7,1.06983672]
[1767371404104,0.16103,3107.2,3105.7,1.07355211]
[1767371404303,0.161,3107.8,3105.7,1.07355211]
[1767371404499,0.89932377,3107.7,3105.7,1.07355211]
[1767371404800,0.89932377,3107.6,3105.7,1.07355211]
[1767371405001,0.16102,3107.5,3105.7,1.07355211]
[1767371405305,0.89966073,3107.4,3105.7,1.07355211]
[1767371405494,0.89966073,3107.3,3105.7,1.07355211]
[1767371405694,0.89966073,3107.2,3105.7,1.07355211]
[1767371405993,0.16103,3107.3,3105.7,1.07355211]
[1767371406397,0.16106,3106.6,3105.7,0.00371539]
[1767371406599,0.00482587,3106.5,3105.7,0.00371539]
[1767371406902,0.16103,3107.3,3105.8,1.06983672]
[1767371407608,0.00410709,3108.3,3105.8,1.06983672]
[1767371407807,0.00482587,3107.2,3106.6,0.00482587]
[1767371408507,0.90024068,3107.1,3105.8,1.06983672]
[1767371408709,0.00482587,3107.2,3105.8,1.06983672]
[1767371408905,0.16101,3107.7,3105.8,1.23093672]
[1767371409402,0.16101,3107.7,3106.0,1.06983672]
[1767371409808,0.00410709,3108.3,3106.2,1.2307488]
[1767371410110,0.00410709,3108.3,3106.8,1.07466259]
[1767371410914,0.16098,3108.2,3106.8,1.07466259]
[1767371411112,0.00482587,3107.7,3106.8,1.07466259]
[1767371411303,0.00410709,3108.3,3106.8,1.07466259]
[1767371411505,0.00410709,3108.3,3107.1,1.06983672]
[1767371412216,0.00482587,3108.0,3107.1,1.06983672]
[1767371412402,0.00410709,3108.3,3107.1,1.06983672]
[1767371413108,41.8875029,3109.9,3107.1,1.06983672]
[1767371413109,0.16091,3109.5,3107.1,1.06983672]
[1767371413317,0.16091,3109.5,3107.6,1.06983672]
[1767371414102,0.16465185,3109.5,3107.6,1.06983672]
[1767371414416,0.00482587,3108.9,3107.7,1.06983672]
[1767371414612,0.00374185,3109.5,3108.2,1.06983672]
[1767371414817,0.00374185,3109.5,3108.2,1.07382174]
[1767371415012,0.16088,3110.2,3108.2,1.07382174]
[1767371415510,0.16084,3110.9,3109.0,1.06983672]
[1767371415812,0.88162548,3110.8,3109.0,1.06983672]
[1767371416011,0.88163349,3110.7,3109.0,1.06983672]
[1767371416212,0.00414388,3110.8,3109.0,1.06983672]
[1767371417418,1.2307488,3110.2,3108.9,0.00482587]
[1767371417711,1.10879015,3110.6,3108.9,0.00482587]
[1767371417712,0.1609,3109.8,3108.9,0.00482587]
[1767371417913,0.16086,3110.5,3108.9,0.00482587]
[1767371418120,0.16086,3110.5,3108.9,1.07466259]
[1767371418319,0.00414388,3110.8,3108.9,1.07466259]
[1767371419215,0.00414388,3110.8,3109.2,1.06983672]
[1767371420016,0.00414388,3110.8,3108.9,0.00482587]
[1767371420017,0.00414388,3110.8,3109.4,1.06983672]
[1767371423526,0.00414388,3110.8,3108.9,0.00482587]
[1767371423527,0.00414388,3110.8,3108.9,1.07466259]
[1767371424310,0.16088,3110.2,3108.9,1.07466259]
[1767371425027,0.00414388,3110.8,3108.9,1.07466259]
[1767371425326,0.00414388,3110.8,3109.4,1.06983672]
[1767371426519,0.16499388,3110.8,3109.4,1.06983672]
[1767371426921,0.00414388,3110.8,3109.4,1.06983672]
[1767371429120,0.00414388,3110.8,3109.4,1.23075672]
[1767371430021,0.16078,3112.1,3110.2,1.12351892]
[1767371430228,1.13204903,3112.7,3110.8,0.00482587]
[1767371430623,1.38684412,3112.7,3110.8,0.00482587]
[1767371430832,1.13269401,3112.2,3109.7,1.12351892]
[1767371431022,1.13268814,3111.7,3109.7,1.12676452]
[1767371431224,0.16086,3110.5,3109.7,0.0032456]
[1767371431629,1.2307488,3111.3,3109.7,0.0032456]
[1767371431929,0.16087,3110.4,3109.7,0.0032456]
[1767371432524,0.16088,3110.2,3109.7,5.6e-06]
[1767371432922,0.16088,3110.1,3109.7,5.6e-06]
[1767371433125,0.16088,3110.1,3109.6,1.47e-06]
[1767371433525,0.16089,3110.1,3109.6,1.47e-06]
[1767371433722,6.16089,3110.1,3109.6,1.47e-06]
[1767371434121,0.1609,3109.9,3109.6,0.00273327]
[1767371434423,0.16091,3109.7,3108.0,1.12351892]
[1767371434830,0.16087,3110.4,3108.4,1.12351892]
[1767371435328,0.16415289,3110.4,3109.1,1.12834479]
[1767371435528,0.16087,3110.3,3109.1,1.12834479]
[1767371436226,0.00482587,3110.0,3109.1,1.12834479]
[1767371436417,0.16084,3110.9,3109.1,1.12834479]
[1767371437424,0.00482587,3110.3,3109.1,1.12834479]
[1767371438030,0.00288425,3110.9,3109.5,1.12351892]
[1767371438238,0.16081,3111.5,3109.5,1.12351892]
[1767371438424,0.16081,3111.5,3109.7,1.12351892]
[1767371439132,0.1643451,3111.5,3109.7,1.12351892]
[1767371439727,0.0035351,3111.5,3109.9,1.12351892]
[1767371440332,0.16082,3111.3,3109.9,1.12351892]
[1767371442037,0.0035351,3111.5,3109.9,1.12351892]
[1767371442830,0.16082,3111.4,3109.9,1.12351892]
[1767371445333,0.0035351,3111.5,3109.9,1.12351892]
[1767371445638,0.16084,3110.9,3109.4,1.12351892]
[1767371446632,0.0035351,3111.5,3109.7,1.12351892]
[1767371447231,0.1643451,3111.5,3109.7,1.12351892]
[1767371448441,0.0035351,3111.5,3109.7,1.12351892]
[1767371448642,0.16083,3111.1,3109.7,1.12351892]
[1767371449036,0.0035351,3111.5,3109.8,1.12351892]
[1767371449238,0.0035351,3111.5,3109.9,1.12351892]
[1767371450837,0.0035351,3111.5,3109.9,1.28440892]
[1767371451042,0.0035351,3111.5,3110.1,1.12351892]
[1767371451241,0.16077,3112.4,3110.1,1.12351892]
[1767371451443,0.16077,3112.4,3110.9,1.12834479]
[1767371452242,0.16465075,3112.4,3110.9,1.13113152]
[1767371454248,0.00388075,3112.4,3110.9,1.13113152]
[1767371454448,0.00388075,3112.4,3110.9,1.29197152]
[1767371454943,0.00388075,3112.4,3110.9,1.13113152]
[1767371455150,0.16069,3113.8,3112.0,1.11829877]
[1767371455444,0.16067,3114.2,3112.6,1.12312464]
[1767371456148,0.1633922,3114.2,3112.6,1.12312464]
[1767371458042,0.16068,3114.1,3112.6,1.12312464]
[1767371458740,0.0027222,3114.2,3112.8,1.10386509]
[1767371459641,0.0027222,3114.2,3112.6,0.00482587]
[1767371459844,0.16069,3113.8,3112.6,0.00482587]
[1767371460052,0.16069,3113.8,3112.6,1.10869096]
[1767371460245,0.1607,3113.7,3112.6,0.00482587]
[1767371460842,0.0027222,3114.2,3112.6,1.10869096]
[1767371461848,0.16065,3114.7,3112.8,1.10386509]
[1767371462842,1.11350731,3115.4,3112.8,1.10386509]
[1767371463048,3.47207997,3115.5,3112.8,1.10386509]
[1767371463049,1.11350731,3115.2,3112.8,1.10386509]
[1767371463242,0.87278553,3115.1,3112.8,1.10386509]
[1767371463438,0.16069,3113.9,3112.6,0.00482587]
[1767371463650,1.11350731,3114.5,3112.6,0.00482587]
[1767371463949,0.16069,3113.8,3112.6,0.00482587]
[1767371464248,0.16066,3114.4,3112.6,1.10869096]
[1767371464639,1.27410731,3115.6,3113.0,1.10386509]
[1767371464848,0.1606,3115.6,3113.2,1.26458509]
[1767371465047,0.1606,3115.6,3113.2,1.26732849]
[1767371465238,1.11350731,3115.8,3113.4,1.10386509]
[1767371465445,0.16058,3116.0,3114.3,0.00481764]
[1767371465639,1.11350731,3118.2,3114.4,1.10386509]
[1767371465843,1.11350731,3118.2,3116.0,1.10868273]
[1767371466046,0.16045,3118.4,3116.0,1.11130256]
[1767371466242,0.25851221,3118.8,3116.2,1.10386509]
[1767371466452,0.25851221,3118.8,3116.6,1.10386509]
[1767371466652,0.25851221,3118.8,3116.8,1.10386509]
[1767371466951,0.16038,3119.9,3117.0,1.10386509]
[1767371467143,0.16038,3119.9,3118.2,1.10386509]
[1767371467442,2.29055239,3121.6,3118.2,1.10660888]
[1767371467443,0.16031,3121.3,3118.2,1.10660888]
[1767371467653,0.16031,3121.3,3118.4,1.10386509]
[1767371467841,0.16025,3122.4,3119.2,1.10386509]
[1767371468044,1.15384615,3123.0,3119.6,1.10386509]
[1767371468242,1.15384615,3123.0,3119.8,1.10386509]
[1767371468441,5.17866727,3125.1,3119.8,1.10386509]
[1767371468442,0.16008,3125.7,3121.7,1.10386509]
[1767371468639,0.00929152,3126.2,3122.8,1.10386509]
[1767371468845,0.15996,3128.1,3123.5,1.10386509]
[1767371469148,0.15996,3128.1,3124.2,1.10386509]
[1767371469341,0.15996,3128.1,3124.5,1.10386509]
[1767371469542,0.15996,3128.1,3124.7,1.10386509]
[1767371469744,1.11350731,3128.7,3126.1,1.10386509]
[1767371469745,0.05567857,3128.7,3126.1,1.10386509]
[1767371469941,0.504,3129.5,3126.3,1.10386509]
[1767371470142,0.15996,3128.0,3126.2,4.18342261]
[1767371470447,0.16,3127.2,3124.6,1.10386509]
[1767371470645,0.16,3127.2,3125.1,1.10386509]
[1767371471147,0.00471711,3126.5,3125.8,0.00480077]
[1767371471345,1.11350731,3128.1,3125.8,0.00480077]
[1767371471545,0.16002,3126.9,3124.6,6.27021407]
[1767371471846,0.16002,3126.9,3121.7,22.476]
[1767371471847,1.11350731,3126.0,3123.2,0.25720026]
[1767371472243,1.27349731,3127.5,3124.3,1.10386509]
[1767371472447,1.11350731,3127.5,3124.4,1.10386509]
[1767371472642,0.00480077,3126.3,3125.6,8.366e-05]
[1767371472841,0.0556894,3127.8,3125.7,1.10386509]
[1767371473045,1.11350731,3128.4,3125.8,1.10386509]
[1767371473246,1.11350731,3128.2,3125.8,1.10386509]
[1767371473649,1.11350731,3128.2,3123.1,1.41451847]
[1767371473650,1.11350731,3127.9,3125.1,1.10386509]
[1767371473852,0.00471711,3126.8,3124.4,1.10386509]
[1767371474049,1.11350731,3126.5,3123.7,1.10386509]
[1767371474246,1.11350731,3126.2,3123.0,1.10386509]
[1767371474650,1.11350731,3125.9,3123.0,1.10386509]
[1767371474953,0.16008,3125.8,3124.7,0.00480077]
[1767371475154,1.27359731,3125.6,3123.0,1.10386509]
[1767371475355,3.208,3126.0,3121.9,0.25773817]
[1767371475356,1.11350731,3125.4,3122.3,1.10386509]
[1767371475756,1.11350731,3125.4,3120.5,0.28189571]
[1767371475757,1.11350731,3124.8,3121.6,1.10386509]
[1767371475951,0.16017,3124.0,3121.6,1.10386509]
[1767371476145,0.00480077,3123.1,3120.8,1.10386509]
[1767371476350,0.00480077,3123.1,3121.6,0.00324944]
[1767371476754,0.16502077,3123.1,3121.6,0.00324944]
[1767371477258,0.16502077,3123.1,3122.0,0.00480077]
[1767371477459,0.16502077,3123.1,3121.6,0.00324944]
[1767371477854,0.00480077,3123.1,3121.6,1.10711453]
[1767371478457,0.00480077,3123.1,3122.0,0.00480077]
[1767371478661,0.00480077,3123.1,3122.0,1.10866586]
[1767371479552,0.00265619,3124.0,3122.1,4.09890551]
[1767371479757,0.00265619,3124.0,3122.2,1.10386509]
[1767371480567,0.00480077,3123.4,3122.2,1.10386509]
[1767371480780,4.31950731,3125.7,3122.4,1.10386509]
[1767371481071,0.16014,3124.6,3122.4,1.10386509]
[1767371481271,7.494,3124.5,3122.4,1.10386509]
[1767371481465,0.16016,3124.1,3122.4,1.10386509]
[1767371481662,1.11350731,3125.1,3122.9,0.00480077]
[1767371481663,0.00480077,3123.6,3122.9,0.00480077]
[1767371482965,6.16499077,3123.6,3121.6,1.10711453]
[1767371483171,0.00480077,3123.6,3121.6,1.10711453]
[1767371483968,0.1602,3123.3,3122.3,0.00480077]
[1767371484375,0.16021,3123.1,3121.6,0.00324944]
[1767371484670,0.16021,3123.1,3120.1,3.72]
[1767371484671,0.01562536,3122.4,3120.2,1.10386509]
[1767371484862,0.1603,3121.5,3119.6,1.10386509]
[1767371485168,3.205,3122.1,3119.6,1.10386509]
[1767371485368,0.00480077,3121.2,3120.5,0.00480077]
[1767371485672,0.01562536,3120.9,3120.5,0.00790952]
[1767371486068,0.00805021,3121.2,3120.5,0.00790952]
[1767371486264,0.1602,3123.4,3120.5,1.10663901]
[1767371486569,0.1602,3123.4,3120.7,1.09872949]
[1767371486771,0.16021,3123.3,3120.7,1.09872949]
[1767371487077,0.16022,3123.0,3120.7,1.09872949]
[1767371487372,0.00480077,3122.2,3120.7,1.09872949]
[1767371487675,0.00480077,3122.2,3120.9,1.12655386]
[1767371490477,0.16022,3123.0,3120.9,1.12655386]
[1767371490774,0.16022,3122.9,3120.9,1.12655386]
[1767371491070,3.205,3123.5,3120.9,1.12655386]
[1767371491071,0.16023,3122.8,3120.9,1.12655386]
[1767371491266,0.00480077,3122.2,3120.9,1.12655386]
[1767371491467,6.82e-06,3121.6,3121.1,1.12655386]
[1767371491671,0.1602,3123.4,3121.1,1.12655386]
[1767371491870,0.01396817,3122.3,3121.1,1.12655386]
[1767371492062,3.205,3123.5,3121.1,1.12655386]
[1767371492267,7.492,3124.5,3121.5,1.12655386]
[1767371492470,0.16021,3123.2,3121.5,1.12655386]
[1767371492664,0.02313557,3123.0,3121.5,1.12655386]
[1767371492870,0.03710374,3122.3,3120.8,1.12655386]
[1767371493071,0.16024,3122.7,3120.8,1.12655386]
[1767371493278,0.01396817,3121.8,3120.8,1.12655386]
[1767371493474,0.00480077,3121.6,3121.0,0.00480077]
[1767371493871,3.205,3123.3,3121.0,1.13135463]
[1767371494071,4.36481694,3123.3,3121.0,1.13135463]
[1767371494372,1.15981694,3123.0,3121.0,0.00480077]
[1767371494577,0.16029,3121.6,3120.5,0.00310875]
[1767371494769,7.51,3123.2,3120.5,0.00310875]
[1767371494770,1.15981694,3122.8,3120.5,0.00310875]
[1767371494970,0.01396817,3121.7,3120.5,0.00310875]
[1767371495178,1.15981694,3122.8,3120.5,0.00310875]
[1767371495378,0.16024,3122.6,3120.5,1.12966261]
[1767371495584,3.205,3124.7,3121.8,1.27286569]
[1767371495874,3.205,3124.7,3121.9,1.12655386]
[1767371496073,0.01396817,3123.3,3122.1,1.12655386]
[1767371496272,0.16015,3124.3,3122.1,1.12655386]
[1767371496474,0.16016,3124.2,3122.1,1.12655386]
[1767371496670,0.00480077,3123.5,3122.8,0.00480077]
[1767371496968,0.1601,3125.4,3123.0,1.12655386]
[1767371497173,3.205,3125.9,3123.2,1.28575386]
[1767371497368,3.205,3126.8,3123.3,3.205]
[1767371497576,0.16002,3127.0,3123.3,10.63038469]
[1767371497875,0.15998,3127.7,3124.3,0.16015]
[1767371498183,3.28881694,3128.1,3124.7,0.00480077]
[1767371498184,0.16001,3127.2,3124.7,0.00480077]
[1767371498473,2.129,3128.1,3124.7,0.16493077]
[1767371498474,1.15981694,3127.9,3124.7,0.16493077]
[1767371498679,1.01818054,3127.8,3124.8,4.10201317]
[1767371498974,0.16001,3127.2,3124.7,0.00480077]
[1767371499173,0.16001,3127.0,3124.7,0.00480077]